[Event "January 9 Early 2024"]
[Site "https://www.chess.com"]
[Date "2024.01.11"]
[Round "2"]
[White "Fiedorek, Michal"]
[Black "Abdulrahman Mohammad, Al Taher"]
[Result "1-0"]
[Board "309"]
[TimeControl "180+1"]
[WhiteFideId "1199528"]
[BlackFideId "9310258"]
[WhiteElo "2497"]
[BlackElo "2247"]
[WhiteTeam "POL"]
[BlackTeam "UAE"]
[WhiteClock "0:00:06"]
[BlackClock "0:00:05"]

1. e4 {[%clk 0:03:00]}  c5 {[%clk 0:02:59]} 2. Nf3 {[%clk 0:03:01]}  Nc6 {[%clk 0:02:59]} 3. d4 {[%clk 0:03:01]}  cxd4 {[%clk 0:03:00]} 4. Nxd4 {[%clk 0:03:02]}  g6 {[%clk 0:03:01]} 5. c4 {[%clk 0:03:02]}  Nf6 {[%clk 0:03:01]} 6. Nc3 {[%clk 0:03:01]}  Nxd4 {[%clk 0:03:02]} 7. Qxd4 {[%clk 0:03:02]}  d6 {[%clk 0:03:03]} 8. Be2 {[%clk 0:03:00]}  Bg7 {[%clk 0:03:00]} 9. Be3 {[%clk 0:03:01]}  O-O {[%clk 0:03:00]} 10. Qd2 {[%clk 0:03:02]}  Be6 {[%clk 0:03:01]} 11. Rd1 {[%clk 0:03:00]}  Qa5 {[%clk 0:03:00]} 12. O-O {[%clk 0:03:00]}  Rfc8 {[%clk 0:03:00]} 13. b3 {[%clk 0:02:58]}  Ng4 {[%clk 0:02:46]} 14. Bd4 {[%clk 0:02:30]}  Bxd4 {[%clk 0:02:46]} 15. Qxd4 {[%clk 0:02:27]}  Qe5 {[%clk 0:02:45]} 16. Qxe5 {[%clk 0:02:26]}  Nxe5 {[%clk 0:02:46]} 17. f4 {[%clk 0:02:22]}  Nc6 {[%clk 0:02:32]} 18. Nd5 {[%clk 0:02:21]}  Bxd5 {[%clk 0:02:28]} 19. exd5 {[%clk 0:02:21]}  Nb4 {[%clk 0:02:18]} 20. a3 {[%clk 0:02:17]}  Nc2 {[%clk 0:02:18]} 21. Rd2 {[%clk 0:02:10]}  Ne3 {[%clk 0:02:17]} 22. Rf3 {[%clk 0:02:02]}  Nf5 {[%clk 0:02:18]} 23. g4 {[%clk 0:02:03]}  Ng7 {[%clk 0:02:15]} 24. Re3 {[%clk 0:02:01]}  Rc7 {[%clk 0:02:10]} 25. Bd3 {[%clk 0:02:01]}  h5 {[%clk 0:02:06]} 26. h3 {[%clk 0:02:01]}  Ne8 {[%clk 0:02:03]} 27. gxh5 {[%clk 0:01:56]}  gxh5 {[%clk 0:02:04]} 28. Rg2+ {[%clk 0:01:56]}  Kh8 {[%clk 0:02:00]} 29. Reg3 {[%clk 0:01:51]}  Nf6 {[%clk 0:02:00]} 30. Rg7 {[%clk 0:01:50]}  Rg8 {[%clk 0:01:37]} 31. Rxg8+ {[%clk 0:01:11]}  Nxg8 {[%clk 0:01:37]} 32. Kf2 {[%clk 0:01:12]}  Nf6 {[%clk 0:01:34]} 33. Ke3 {[%clk 0:01:12]}  a5 {[%clk 0:01:26]} 34. Kd4 {[%clk 0:01:11]}  b6 {[%clk 0:01:24]} 35. Rg5 {[%clk 0:01:00]}  Rc8 {[%clk 0:01:12]} 36. Be2 {[%clk 0:00:52]}  Rg8 {[%clk 0:01:12]} 37. h4 {[%clk 0:00:50]}  Kh7 {[%clk 0:00:41]} 38. Bd3+ {[%clk 0:00:47]}  Kh8 {[%clk 0:00:30]} 39. Bf5 {[%clk 0:00:46]}  Rxg5 {[%clk 0:00:22]} 40. fxg5 {[%clk 0:00:44]}  Ne8 {[%clk 0:00:21]} 41. b4 {[%clk 0:00:38]}  axb4 {[%clk 0:00:21]} 42. axb4 {[%clk 0:00:39]}  Kg7 {[%clk 0:00:21]} 43. Bd3 {[%clk 0:00:28]}  Nc7 {[%clk 0:00:17]} 44. c5 {[%clk 0:00:18]}  bxc5+ {[%clk 0:00:17]} 45. bxc5 {[%clk 0:00:19]}  dxc5+ {[%clk 0:00:17]} 46. Kxc5 {[%clk 0:00:20]}  f6 {[%clk 0:00:16]} 47. g6 {[%clk 0:00:15]}  Ne8 {[%clk 0:00:16]} 48. Kc6 {[%clk 0:00:16]}  Nd6 {[%clk 0:00:16]} 49. Kd7 {[%clk 0:00:15]}  Nb7 {[%clk 0:00:02]} 50. Kxe7 {[%clk 0:00:14]}  Nc5 {[%clk 0:00:02]} 51. d6 {[%clk 0:00:14]}  Nxd3 {[%clk 0:00:01]} 52. d7 {[%clk 0:00:14]}  Ne5 {[%clk 0:00:02]} 53. d8=N {[%clk 0:00:01]}  Nc6+ {[%clk 0:00:02]} 54. Nxc6 {[%clk 0:00:01]}  Kxg6 {[%clk 0:00:03]} 55. Nd4 {[%clk 0:00:01]}  f5 {[%clk 0:00:03]} 56. Ke6 {[%clk 0:00:02]}  f4 {[%clk 0:00:03]} 57. Nf3 {[%clk 0:00:02]}  Kg7 {[%clk 0:00:03]} 58. Kf5 {[%clk 0:00:03]}  Kf7 {[%clk 0:00:03]} 59. Kxf4 {[%clk 0:00:03]}  Kf6 {[%clk 0:00:04]} 60. Ng5 {[%clk 0:00:03]}  Kg6 {[%clk 0:00:04]} 61. Ne4 {[%clk 0:00:04]}  Kf7 {[%clk 0:00:04]} 62. Kg5 {[%clk 0:00:05]}  Kg7 {[%clk 0:00:05]} 63. Ng3 {[%clk 0:00:06]} 1-0

[Event "January 9 Early 2024"]
[Site "https://www.chess.com"]
[Date "2024.01.11"]
[Round "2"]
[White "Saha, Ananda"]
[Black "Ryan, Joseph"]
[Result "1/2-1/2"]
[Board "312"]
[TimeControl "180+1"]
[WhiteFideId "2619644"]
[BlackFideId "2500426"]
[WhiteElo "2476"]
[BlackElo "2229"]
[WhiteTeam "CAN"]
[BlackTeam "IRL"]
[WhiteClock "0:00:09"]
[BlackClock "0:00:40"]

1. d4 {[%clk 0:03:00]}  d5 {[%clk 0:02:57]} 2. c4 {[%clk 0:03:01]}  e6 {[%clk 0:02:57]} 3. Nc3 {[%clk 0:03:01]}  Nf6 {[%clk 0:02:56]} 4. cxd5 {[%clk 0:03:01]}  exd5 {[%clk 0:02:55]} 5. Bg5 {[%clk 0:03:01]}  c6 {[%clk 0:02:55]} 6. e3 {[%clk 0:03:01]}  Be7 {[%clk 0:02:56]} 7. Bd3 {[%clk 0:03:01]}  h6 {[%clk 0:02:56]} 8. Bh4 {[%clk 0:03:01]}  O-O {[%clk 0:02:56]} 9. Nge2 {[%clk 0:03:01]}  Ne8 {[%clk 0:02:56]} 10. Bxe7 {[%clk 0:02:54]}  Qxe7 {[%clk 0:02:57]} 11. O-O {[%clk 0:02:54]}  Nd6 {[%clk 0:02:57]} 12. Rc1 {[%clk 0:02:35]}  Bf5 {[%clk 0:02:56]} 13. Ng3 {[%clk 0:02:32]}  Bxd3 {[%clk 0:02:55]} 14. Qxd3 {[%clk 0:02:32]}  Nd7 {[%clk 0:02:55]} 15. a4 {[%clk 0:02:21]}  a5 {[%clk 0:02:49]} 16. Nb1 {[%clk 0:02:01]}  Nf6 {[%clk 0:02:47]} 17. Nd2 {[%clk 0:01:58]}  Rfe8 {[%clk 0:02:45]} 18. Nb3 {[%clk 0:01:57]}  Nfe4 {[%clk 0:02:43]} 19. Nc5 {[%clk 0:01:55]}  Nxc5 {[%clk 0:02:43]} 20. Rxc5 {[%clk 0:01:52]}  g6 {[%clk 0:02:37]} 21. Rfc1 {[%clk 0:01:48]}  Kg7 {[%clk 0:02:37]} 22. Qb3 {[%clk 0:01:40]}  h5 {[%clk 0:02:37]} 23. R5c2 {[%clk 0:01:35]}  h4 {[%clk 0:02:36]} 24. Nf1 {[%clk 0:01:29]}  h3 {[%clk 0:02:36]} 25. gxh3 {[%clk 0:01:09]}  Rh8 {[%clk 0:02:36]} 26. f3 {[%clk 0:00:48]}  Rxh3 {[%clk 0:02:34]} 27. Rg2 {[%clk 0:00:48]}  Rxf3 {[%clk 0:02:32]} 28. Re1 {[%clk 0:00:42]}  Rh8 {[%clk 0:02:30]} 29. Ng3 {[%clk 0:00:42]}  Rh4 {[%clk 0:02:19]} 30. Qc3 {[%clk 0:00:39]}  Ne4 {[%clk 0:02:13]} 31. Qxa5 {[%clk 0:00:36]}  Nxg3 {[%clk 0:02:08]} 32. Rxg3 {[%clk 0:00:29]}  Rxg3+ {[%clk 0:02:04]} 33. hxg3 {[%clk 0:00:30]}  Re4 {[%clk 0:02:01]} 34. Qd2 {[%clk 0:00:29]}  Qg5 {[%clk 0:01:59]} 35. Qf2 {[%clk 0:00:26]}  f5 {[%clk 0:01:56]} 36. Kg2 {[%clk 0:00:25]}  Qg4 {[%clk 0:01:55]} 37. Qf3 {[%clk 0:00:24]}  Qxf3+ {[%clk 0:01:49]} 38. Kxf3 {[%clk 0:00:25]}  Re8 {[%clk 0:01:48]} 39. b4 {[%clk 0:00:23]}  Ra8 {[%clk 0:01:38]} 40. a5 {[%clk 0:00:23]}  b6 {[%clk 0:01:36]} 41. axb6 {[%clk 0:00:19]}  Rb8 {[%clk 0:01:36]} 42. Kf4 {[%clk 0:00:13]}  Rxb6 {[%clk 0:01:36]} 43. Rb1 {[%clk 0:00:11]}  Kf6 {[%clk 0:01:35]} 44. g4 {[%clk 0:00:11]}  g5+ {[%clk 0:01:35]} 45. Kf3 {[%clk 0:00:11]}  Ra6 {[%clk 0:01:32]} 46. Rc1 {[%clk 0:00:07]}  Kg6 {[%clk 0:01:25]} 47. Rc5 {[%clk 0:00:06]}  Rb6 {[%clk 0:01:23]} 48. Kg3 {[%clk 0:00:04]}  Kf6 {[%clk 0:01:12]} 49. Kf3 {[%clk 0:00:04]}  Ke6 {[%clk 0:01:10]} 50. Kg3 {[%clk 0:00:04]}  fxg4 {[%clk 0:01:08]} 51. Kxg4 {[%clk 0:00:04]}  Kd6 {[%clk 0:01:09]} 52. Kxg5 {[%clk 0:00:04]}  Rxb4 {[%clk 0:01:09]} 53. Kf4 {[%clk 0:00:04]}  Rb1 {[%clk 0:01:09]} 54. Kf3 {[%clk 0:00:05]}  Rf1+ {[%clk 0:01:08]} 55. Ke2 {[%clk 0:00:06]}  Rf8 {[%clk 0:01:08]} 56. Ra5 {[%clk 0:00:06]}  Rb8 {[%clk 0:01:05]} 57. Kd3 {[%clk 0:00:07]}  Rb3+ {[%clk 0:01:04]} 58. Kd2 {[%clk 0:00:07]}  Rb4 {[%clk 0:01:04]} 59. Kc3 {[%clk 0:00:07]}  Rb1 {[%clk 0:01:02]} 60. Ra8 {[%clk 0:00:08]}  Rc1+ {[%clk 0:01:01]} 61. Kd2 {[%clk 0:00:08]}  Rh1 {[%clk 0:01:00]} 62. Rg8 {[%clk 0:00:08]}  Kc7 {[%clk 0:00:59]} 63. Kc3 {[%clk 0:00:08]}  Rh3 {[%clk 0:00:58]} 64. Kd3 {[%clk 0:00:08]}  Kb7 {[%clk 0:00:57]} 65. Rg7+ {[%clk 0:00:08]}  Kb6 {[%clk 0:00:58]} 66. Rg8 {[%clk 0:00:08]}  c5 {[%clk 0:00:56]} 67. Rb8+ {[%clk 0:00:06]}  Kc7 {[%clk 0:00:56]} 68. Rg8 {[%clk 0:00:06]}  c4+ {[%clk 0:00:55]} 69. Kd2 {[%clk 0:00:05]}  Kd6 {[%clk 0:00:54]} 70. Rc8 {[%clk 0:00:05]}  Ke6 {[%clk 0:00:54]} 71. Ke2 {[%clk 0:00:04]}  Rh2+ {[%clk 0:00:51]} 72. Kf3 {[%clk 0:00:04]}  Ra2 {[%clk 0:00:50]} 73. Rc6+ {[%clk 0:00:04]}  Kd7 {[%clk 0:00:49]} 74. Rc5 {[%clk 0:00:03]}  Kd6 {[%clk 0:00:49]} 75. Rb5 {[%clk 0:00:04]}  c3 {[%clk 0:00:48]} 76. Rc5 {[%clk 0:00:04]}  c2 {[%clk 0:00:48]} 77. Kg3 {[%clk 0:00:03]}  Ke6 {[%clk 0:00:47]} 78. Kf3 {[%clk 0:00:04]}  Rb2 {[%clk 0:00:46]} 79. e4 {[%clk 0:00:03]}  Rb3+ {[%clk 0:00:44]} 80. Kf4 {[%clk 0:00:03]}  dxe4 {[%clk 0:00:40]} 81. Kxe4 {[%clk 0:00:04]}  Rb2 {[%clk 0:00:40]} 82. Kd3 {[%clk 0:00:05]}  Kd6 {[%clk 0:00:39]} 83. Rxc2 {[%clk 0:00:03]}  Rxc2 {[%clk 0:00:37]} 84. Kxc2 {[%clk 0:00:04]}  Kd5 {[%clk 0:00:38]} 85. Kd3 {[%clk 0:00:04]}  Kd6 {[%clk 0:00:38]} 86. Kc3 {[%clk 0:00:05]}  Kd5 {[%clk 0:00:38]} 87. Kd3 {[%clk 0:00:06]}  Kd6 {[%clk 0:00:38]} 88. Ke4 {[%clk 0:00:06]}  Ke6 {[%clk 0:00:39]} 89. d5+ {[%clk 0:00:07]}  Kd6 {[%clk 0:00:39]} 90. Kd4 {[%clk 0:00:08]}  Kd7 {[%clk 0:00:40]} 91. Ke5 {[%clk 0:00:09]}  Ke7 {[%clk 0:00:40]} 1/2-1/2

[Event "January 9 Early 2024"]
[Site "https://www.chess.com"]
[Date "2024.01.11"]
[Round "2"]
[White "Mekhitarian, Krikor Sevag"]
[Black "Skuhala, Jernej"]
[Result "0-1"]
[Board "313"]
[TimeControl "180+1"]
[WhiteFideId "2107660"]
[BlackFideId "14605651"]
[WhiteElo "2764"]
[BlackElo "2551"]
[WhiteTeam "BRA"]
[BlackTeam "SLO"]
[WhiteClock "0:00:01"]
[BlackClock "0:00:15"]

1. Nf3 {[%clk 0:03:00]}  Nf6 {[%clk 0:02:57]} 2. c4 {[%clk 0:03:01]}  e6 {[%clk 0:02:58]} 3. Nc3 {[%clk 0:03:00]}  d5 {[%clk 0:02:59]} 4. cxd5 {[%clk 0:03:01]}  exd5 {[%clk 0:02:56]} 5. d4 {[%clk 0:03:02]}  c6 {[%clk 0:02:56]} 6. Bf4 {[%clk 0:03:03]}  Bb4 {[%clk 0:02:56]} 7. e3 {[%clk 0:02:59]}  Ne4 {[%clk 0:02:53]} 8. Nd2 {[%clk 0:03:00]}  Nxc3 {[%clk 0:02:48]} 9. bxc3 {[%clk 0:03:00]}  Bxc3 {[%clk 0:02:49]} 10. Rc1 {[%clk 0:03:00]}  Bb4 {[%clk 0:02:47]} 11. Bd3 {[%clk 0:02:59]}  Qa5 {[%clk 0:02:44]} 12. Rc2 {[%clk 0:02:53]}  Nd7 {[%clk 0:02:40]} 13. O-O {[%clk 0:02:51]}  Nf6 {[%clk 0:02:40]} 14. Nb3 {[%clk 0:02:42]}  Qd8 {[%clk 0:02:38]} 15. Nc5 {[%clk 0:02:38]}  O-O {[%clk 0:02:35]} 16. Bg5 {[%clk 0:02:33]}  h6 {[%clk 0:02:31]} 17. Bh4 {[%clk 0:02:33]}  Re8 {[%clk 0:02:12]} 18. Qb1 {[%clk 0:02:28]}  Bxc5 {[%clk 0:02:12]} 19. Rxc5 {[%clk 0:02:27]}  Qd6 {[%clk 0:02:09]} 20. Bg3 {[%clk 0:02:07]}  Qe7 {[%clk 0:02:09]} 21. a4 {[%clk 0:01:53]}  Ne4 {[%clk 0:02:08]} 22. Bxe4 {[%clk 0:01:53]}  Qxe4 {[%clk 0:02:09]} 23. Qb2 {[%clk 0:01:44]}  Qg6 {[%clk 0:01:53]} 24. a5 {[%clk 0:01:37]}  a6 {[%clk 0:01:48]} 25. Re1 {[%clk 0:01:29]}  f6 {[%clk 0:01:39]} 26. f3 {[%clk 0:01:27]}  Qf7 {[%clk 0:01:32]} 27. Qb6 {[%clk 0:01:22]}  Bf5 {[%clk 0:01:28]} 28. Rc3 {[%clk 0:01:17]}  Re7 {[%clk 0:01:27]} 29. Bd6 {[%clk 0:01:16]}  Rd7 {[%clk 0:01:24]} 30. Bg3 {[%clk 0:01:09]}  Re8 {[%clk 0:01:23]} 31. Qb2 {[%clk 0:01:07]}  Bg6 {[%clk 0:01:19]} 32. Qd2 {[%clk 0:01:06]}  Kh7 {[%clk 0:01:18]} 33. Qf2 {[%clk 0:01:03]}  Qe7 {[%clk 0:01:17]} 34. Rc5 {[%clk 0:01:01]}  Qd8 {[%clk 0:01:16]} 35. Bf4 {[%clk 0:01:00]}  Bd3 {[%clk 0:01:08]} 36. h4 {[%clk 0:00:56]}  Bc4 {[%clk 0:01:08]} 37. h5 {[%clk 0:00:53]}  Kg8 {[%clk 0:01:06]} 38. Qg3 {[%clk 0:00:53]}  Kh8 {[%clk 0:01:03]} 39. Rb1 {[%clk 0:00:46]}  Qe7 {[%clk 0:01:02]} 40. Qg6 {[%clk 0:00:35]}  Qf7 {[%clk 0:01:01]} 41. Qf5 {[%clk 0:00:35]}  Rde7 {[%clk 0:00:44]} 42. Kf2 {[%clk 0:00:32]}  Qg8 {[%clk 0:00:32]} 43. Rh1 {[%clk 0:00:29]}  Qh7 {[%clk 0:00:32]} 44. Qxh7+ {[%clk 0:00:25]}  Kxh7 {[%clk 0:00:33]} 45. g4 {[%clk 0:00:25]}  Kg8 {[%clk 0:00:33]} 46. Rc1 {[%clk 0:00:24]}  Kf7 {[%clk 0:00:32]} 47. e4 {[%clk 0:00:22]}  Rd7 {[%clk 0:00:28]} 48. e5 {[%clk 0:00:22]}  fxe5 {[%clk 0:00:27]} 49. dxe5 {[%clk 0:00:19]}  Ke6 {[%clk 0:00:26]} 50. Bg3 {[%clk 0:00:18]}  Rf8 {[%clk 0:00:26]} 51. f4 {[%clk 0:00:17]}  Bd3 {[%clk 0:00:20]} 52. Ke3 {[%clk 0:00:13]}  Bh7 {[%clk 0:00:19]} 53. Kd4 {[%clk 0:00:13]}  Rdf7 {[%clk 0:00:18]} 54. Rf1 {[%clk 0:00:13]}  Kd7 {[%clk 0:00:17]} 55. Rf2 {[%clk 0:00:12]}  Ke6 {[%clk 0:00:17]} 56. Rc1 {[%clk 0:00:12]}  Be4 {[%clk 0:00:16]} 57. Rcf1 {[%clk 0:00:12]}  Re7 {[%clk 0:00:16]} 58. f5+ {[%clk 0:00:12]}  Kf7 {[%clk 0:00:17]} 59. e6+ {[%clk 0:00:12]}  Kg8 {[%clk 0:00:17]} 60. Bd6 {[%clk 0:00:12]}  Rfe8 {[%clk 0:00:16]} 61. Bxe7 {[%clk 0:00:13]}  Rxe7 {[%clk 0:00:17]} 62. Ke5 {[%clk 0:00:13]}  Re8 {[%clk 0:00:16]} 63. Rb2 {[%clk 0:00:10]}  Bd3 {[%clk 0:00:14]} 64. Rxb7 {[%clk 0:00:09]}  Bxf1 {[%clk 0:00:14]} 65. Kd6 {[%clk 0:00:06]}  d4 {[%clk 0:00:14]} 66. Kd7 {[%clk 0:00:06]}  Ra8 {[%clk 0:00:13]} 67. Kxc6 {[%clk 0:00:04]}  Bb5+ {[%clk 0:00:13]} 68. Kd6 {[%clk 0:00:03]}  Rd8+ {[%clk 0:00:13]} 69. Ke5 {[%clk 0:00:03]}  d3 {[%clk 0:00:14]} 70. e7 {[%clk 0:00:04]}  Re8 {[%clk 0:00:14]} 71. f6 {[%clk 0:00:04]}  d2 {[%clk 0:00:15]} 72. Ke6 {[%clk 0:00:03]}  gxf6 {[%clk 0:00:14]} 73. Rb8 {[%clk 0:00:01]}  d1=Q {[%clk 0:00:14]} 74. Rxe8+ {[%clk 0:00:01]}  Bxe8 {[%clk 0:00:15]} 0-1

[Event "January 9 Early 2024"]
[Site "https://www.chess.com"]
[Date "2024.01.11"]
[Round "2"]
[White "Skaric, Djuro"]
[Black "Davidson, Kevin"]
[Result "0-1"]
[Board "314"]
[TimeControl "180+1"]
[WhiteFideId "934569"]
[BlackFideId "2056810"]
[WhiteElo "2293"]
[BlackElo "2519"]
[WhiteTeam "SRB"]
[BlackTeam "USA"]
[WhiteClock "0:00:16"]
[BlackClock "0:00:03"]

1. g3 {[%clk 0:03:00]}  Nf6 {[%clk 0:02:59]} 2. Bg2 {[%clk 0:03:00]}  g6 {[%clk 0:02:59]} 3. d3 {[%clk 0:03:01]}  Bg7 {[%clk 0:02:58]} 4. e4 {[%clk 0:03:01]}  d6 {[%clk 0:02:59]} 5. Nc3 {[%clk 0:03:01]}  c5 {[%clk 0:02:58]} 6. h3 {[%clk 0:03:02]}  Nc6 {[%clk 0:02:58]} 7. f4 {[%clk 0:03:02]}  O-O {[%clk 0:02:57]} 8. Nf3 {[%clk 0:03:02]}  Rb8 {[%clk 0:02:57]} 9. g4 {[%clk 0:03:02]}  b5 {[%clk 0:02:56]} 10. O-O {[%clk 0:03:02]}  b4 {[%clk 0:02:56]} 11. Ne2 {[%clk 0:03:03]}  Ne8 {[%clk 0:02:51]} 12. Ng3 {[%clk 0:02:57]}  Nc7 {[%clk 0:02:49]} 13. e5 {[%clk 0:02:55]}  dxe5 {[%clk 0:02:47]} 14. f5 {[%clk 0:02:55]}  Bb7 {[%clk 0:02:30]} 15. Be3 {[%clk 0:02:40]}  Nd4 {[%clk 0:02:28]} 16. c3 {[%clk 0:02:40]}  bxc3 {[%clk 0:02:25]} 17. bxc3 {[%clk 0:02:37]}  Nxf3+ {[%clk 0:02:24]} 18. Bxf3 {[%clk 0:02:36]}  Bxf3 {[%clk 0:02:23]} 19. Qxf3 {[%clk 0:02:36]}  Qxd3 {[%clk 0:02:13]} 20. Bxc5 {[%clk 0:02:32]}  Qxf3 {[%clk 0:01:29]} 21. Rxf3 {[%clk 0:02:31]}  Nd5 {[%clk 0:01:13]} 22. Ne4 {[%clk 0:02:30]}  a5 {[%clk 0:01:05]} 23. Rd1 {[%clk 0:02:29]}  Nf6 {[%clk 0:00:55]} 24. Re1 {[%clk 0:02:07]}  Nxe4 {[%clk 0:00:50]} 25. Rxe4 {[%clk 0:02:07]}  Rfe8 {[%clk 0:00:50]} 26. c4 {[%clk 0:01:58]}  Rbc8 {[%clk 0:00:34]} 27. Bf2 {[%clk 0:01:51]}  Rc6 {[%clk 0:00:27]} 28. Kg2 {[%clk 0:01:46]}  Rec8 {[%clk 0:00:27]} 29. Rc3 {[%clk 0:01:42]}  e6 {[%clk 0:00:24]} 30. fxg6 {[%clk 0:01:34]}  hxg6 {[%clk 0:00:23]} 31. c5 {[%clk 0:01:34]}  f5 {[%clk 0:00:23]} 32. Ra4 {[%clk 0:01:34]}  Ra8 {[%clk 0:00:20]} 33. Rc2 {[%clk 0:01:28]}  e4 {[%clk 0:00:20]} 34. Be3 {[%clk 0:01:26]}  Kf7 {[%clk 0:00:20]} 35. Rac4 {[%clk 0:01:20]}  Be5 {[%clk 0:00:18]} 36. Bf2 {[%clk 0:01:17]}  a4 {[%clk 0:00:18]} 37. Rb4 {[%clk 0:01:15]}  Ra7 {[%clk 0:00:14]} 38. Rb6 {[%clk 0:01:09]}  Rac7 {[%clk 0:00:13]} 39. Rb5 {[%clk 0:01:09]}  Ra7 {[%clk 0:00:12]} 40. Rc4 {[%clk 0:01:06]}  a3 {[%clk 0:00:11]} 41. Rb3 {[%clk 0:01:04]}  Kf6 {[%clk 0:00:09]} 42. Rb6 {[%clk 0:01:04]}  Ra6 {[%clk 0:00:08]} 43. Rxa6 {[%clk 0:01:03]}  Rxa6 {[%clk 0:00:08]} 44. c6 {[%clk 0:01:03]}  Ra8 {[%clk 0:00:07]} 45. Bb6 {[%clk 0:01:00]}  Rc8 {[%clk 0:00:06]} 46. Ba5 {[%clk 0:00:50]}  Bd6 {[%clk 0:00:06]} 47. Bc3+ {[%clk 0:00:47]}  Ke7 {[%clk 0:00:06]} 48. Bd2 {[%clk 0:00:38]}  Kf6 {[%clk 0:00:06]} 49. Bc1 {[%clk 0:00:36]}  Ke5 {[%clk 0:00:05]} 50. Rc3 {[%clk 0:00:30]}  Kd5 {[%clk 0:00:05]} 51. Bxa3 {[%clk 0:00:28]}  Bxa3 {[%clk 0:00:05]} 52. Rxa3 {[%clk 0:00:28]}  Rxc6 {[%clk 0:00:05]} 53. Ra5+ {[%clk 0:00:27]}  Kd4 {[%clk 0:00:04]} 54. Kg3 {[%clk 0:00:24]}  Rc3+ {[%clk 0:00:03]} 55. Kf4 {[%clk 0:00:24]}  Rxh3 {[%clk 0:00:02]} 56. Ra4+ {[%clk 0:00:22]}  Kd5 {[%clk 0:00:02]} 57. Ra5+ {[%clk 0:00:21]}  Kc4 {[%clk 0:00:02]} 58. gxf5 {[%clk 0:00:20]}  exf5 {[%clk 0:00:02]} 59. Re5 {[%clk 0:00:16]}  Rf3+ {[%clk 0:00:02]} 60. Kg5 {[%clk 0:00:17]}  Rg3+ {[%clk 0:00:02]} 61. Kf6 {[%clk 0:00:16]}  Kd4 {[%clk 0:00:01]} 62. a4 {[%clk 0:00:15]}  e3 {[%clk 0:00:01]} 63. a5 {[%clk 0:00:16]}  Rg1 {[%clk 0:00:02]} 64. a6 {[%clk 0:00:14]}  Ra1 {[%clk 0:00:02]} 65. Re6 {[%clk 0:00:11]}  Kd3 {[%clk 0:00:02]} 66. Rd6+ {[%clk 0:00:12]}  Ke2 {[%clk 0:00:02]} 67. Re6 {[%clk 0:00:13]}  Kf2 {[%clk 0:00:02]} 68. Kxg6 {[%clk 0:00:13]}  f4 {[%clk 0:00:02]} 69. Kf5 {[%clk 0:00:13]}  f3 {[%clk 0:00:02]} 70. Kg4 {[%clk 0:00:14]}  e2 {[%clk 0:00:03]} 71. Rf6 {[%clk 0:00:14]}  e1=Q {[%clk 0:00:03]} 72. Rxf3+ {[%clk 0:00:15]}  Kg2 {[%clk 0:00:04]} 73. Rg3+ {[%clk 0:00:15]}  Qxg3+ {[%clk 0:00:03]} 74. Kf5 {[%clk 0:00:16]}  Qf3+ {[%clk 0:00:03]} 0-1

[Event "January 9 Early 2024"]
[Site "https://www.chess.com"]
[Date "2024.01.11"]
[Round "2"]
[White "Flynn, Jacob"]
[Black "Rodriguez Avila, Alvaro"]
[Result "1-0"]
[Board "317"]
[TimeControl "180+1"]
[WhiteFideId "2509393"]
[BlackFideId "24570249"]
[WhiteElo "2528"]
[BlackElo "2314"]
[WhiteTeam "IRL"]
[BlackTeam "ESP"]
[WhiteClock "0:00:03"]
[BlackClock "0:00:02"]

1. d4 {[%clk 0:03:00]}  Nf6 {[%clk 0:02:57]} 2. c4 {[%clk 0:03:01]}  Nc6 {[%clk 0:02:56]} 3. Nf3 {[%clk 0:03:00]}  e6 {[%clk 0:02:56]} 4. a3 {[%clk 0:02:58]}  d6 {[%clk 0:02:54]} 5. Nc3 {[%clk 0:02:58]}  g6 {[%clk 0:02:55]} 6. e4 {[%clk 0:02:58]}  Bg7 {[%clk 0:02:55]} 7. Be2 {[%clk 0:02:59]}  O-O {[%clk 0:02:53]} 8. O-O {[%clk 0:03:00]}  e5 {[%clk 0:02:49]} 9. d5 {[%clk 0:02:53]}  Nb8 {[%clk 0:02:35]} 10. b4 {[%clk 0:02:51]}  a5 {[%clk 0:02:33]} 11. Be3 {[%clk 0:02:46]}  Nbd7 {[%clk 0:02:32]} 12. Nd2 {[%clk 0:02:45]}  Ne8 {[%clk 0:02:05]} 13. c5 {[%clk 0:02:37]}  f5 {[%clk 0:02:04]} 14. f3 {[%clk 0:02:36]}  Ndf6 {[%clk 0:01:47]} 15. Rc1 {[%clk 0:02:34]}  axb4 {[%clk 0:01:47]} 16. axb4 {[%clk 0:02:34]}  f4 {[%clk 0:01:33]} 17. Bf2 {[%clk 0:02:34]}  g5 {[%clk 0:01:34]} 18. Nc4 {[%clk 0:02:35]}  h5 {[%clk 0:01:02]} 19. cxd6 {[%clk 0:02:34]}  cxd6 {[%clk 0:01:03]} 20. Nb6 {[%clk 0:02:34]}  Rb8 {[%clk 0:01:03]} 21. Nb5 {[%clk 0:02:30]}  g4 {[%clk 0:00:54]} 22. Nxc8 {[%clk 0:02:18]}  Rxc8 {[%clk 0:00:53]} 23. Rxc8 {[%clk 0:02:04]}  Qxc8 {[%clk 0:00:53]} 24. Qc1 {[%clk 0:02:03]}  Qd7 {[%clk 0:00:47]} 25. Qc4 {[%clk 0:01:54]}  Nh7 {[%clk 0:00:24]} 26. Rc1 {[%clk 0:01:40]}  gxf3 {[%clk 0:00:24]} 27. Bxf3 {[%clk 0:01:35]}  Ng5 {[%clk 0:00:25]} 28. Bxh5 {[%clk 0:01:35]}  Nf6 {[%clk 0:00:26]} 29. Bg6 {[%clk 0:01:31]}  Qg4 {[%clk 0:00:24]} 30. Bf5 {[%clk 0:01:30]}  Nf3+ {[%clk 0:00:16]} 31. Kh1 {[%clk 0:01:25]}  Qh5 {[%clk 0:00:15]} 32. gxf3 {[%clk 0:01:24]}  Qxf3+ {[%clk 0:00:14]} 33. Kg1 {[%clk 0:01:25]}  Kh8 {[%clk 0:00:04]} 34. Qc3 {[%clk 0:01:23]}  Qh5 {[%clk 0:00:03]} 35. Qh3 {[%clk 0:01:23]}  Qxh3 {[%clk 0:00:03]} 36. Bxh3 {[%clk 0:01:24]}  Nxe4 {[%clk 0:00:03]} 37. Rc7 {[%clk 0:01:19]}  f3 {[%clk 0:00:03]} 38. Rxb7 {[%clk 0:01:10]}  Bh6 {[%clk 0:00:04]} 39. Nc7 {[%clk 0:01:01]}  Nxf2 {[%clk 0:00:03]} 40. Kxf2 {[%clk 0:01:01]}  e4 {[%clk 0:00:04]} 41. Ne6 {[%clk 0:00:47]}  e3+ {[%clk 0:00:04]} 42. Ke1 {[%clk 0:00:47]}  Rg8 {[%clk 0:00:05]} 43. Rf7 {[%clk 0:00:41]}  Rg1+ {[%clk 0:00:05]} 44. Bf1 {[%clk 0:00:42]}  e2 {[%clk 0:00:02]} 45. Rxf3 {[%clk 0:00:42]}  exf1=Q+ {[%clk 0:00:02]} 46. Rxf1 {[%clk 0:00:43]}  Rg4 {[%clk 0:00:03]} 47. Rf6 {[%clk 0:00:33]}  Re4+ {[%clk 0:00:03]} 48. Kf1 {[%clk 0:00:29]}  Bd2 {[%clk 0:00:03]} 49. b5 {[%clk 0:00:24]}  Rb4 {[%clk 0:00:03]} 50. Nc7 {[%clk 0:00:22]}  Rb1+ {[%clk 0:00:01]} 51. Ke2 {[%clk 0:00:21]}  Ba5 {[%clk 0:00:02]} 52. Ne8 {[%clk 0:00:06]}  Rb2+ {[%clk 0:00:02]} 53. Kd3 {[%clk 0:00:06]}  Rxb5 {[%clk 0:00:03]} 54. Rxd6 {[%clk 0:00:06]}  Rb2 {[%clk 0:00:03]} 55. h4 {[%clk 0:00:06]}  Kg8 {[%clk 0:00:03]} 56. h5 {[%clk 0:00:05]}  Kf7 {[%clk 0:00:03]} 57. Nf6 {[%clk 0:00:04]}  Bc7 {[%clk 0:00:02]} 58. Re6 {[%clk 0:00:02]}  Rb3+ {[%clk 0:00:01]} 59. Kc4 {[%clk 0:00:02]}  Rh3 {[%clk 0:00:02]} 60. h6 {[%clk 0:00:02]}  Rxh6 {[%clk 0:00:01]} 61. Rc6 {[%clk 0:00:02]}  Rxf6 {[%clk 0:00:01]} 62. Rxc7+ {[%clk 0:00:02]}  Kg6 {[%clk 0:00:02]} 63. Kc5 {[%clk 0:00:02]}  Kf5 {[%clk 0:00:02]} 64. Re7 {[%clk 0:00:03]}  Rh6 {[%clk 0:00:02]} 65. d6 {[%clk 0:00:03]}  Rh1 {[%clk 0:00:03]} 66. d7 {[%clk 0:00:02]}  Rc1+ {[%clk 0:00:04]} 67. Kb6 {[%clk 0:00:02]}  Rd1 {[%clk 0:00:05]} 68. Kc7 {[%clk 0:00:03]}  Rc1+ {[%clk 0:00:05]} 69. Kd8 {[%clk 0:00:03]}  Rd1 {[%clk 0:00:05]} 70. Ke8 {[%clk 0:00:02]}  Kf6 {[%clk 0:00:02]} 71. d8=Q {[%clk 0:00:03]}  Rh1 {[%clk 0:00:02]} 72. Rf7+ {[%clk 0:00:03]} 1-0